[Event "Titled Tuesday Blitz June 13 Early 2023"]
[White "Thipsay, Bagyashree Sathe"]
[Black "Seletsky, Grigory"]
[WhiteFideId "5001013"]
[BlackFideId "14112191"]
[WhiteElo "2031"]
[BlackElo "2491"]
[Result "0-1"]
[Round "5"]
[TimeControl "180+2"]
[Date "2023.06.13"]
[WhiteClock "0:00:03"]
[BlackClock "0:01:45"]
[Board "194"]

1. e4 {[%clk 0:02:59]}  e6 {[%clk 0:02:59]} 2. d4 {[%clk 0:02:58]}  d5 {[%clk 0:02:59]} 3. e5 {[%clk 0:02:58]}  c5 {[%clk 0:02:59]} 4. c3 {[%clk 0:02:58]}  Nc6 {[%clk 0:03:00]} 5. Nf3 {[%clk 0:02:59]}  Bd7 {[%clk 0:03:00]} 6. Be2 {[%clk 0:02:58]}  Rc8 {[%clk 0:02:58]} 7. O-O {[%clk 0:02:58]}  cxd4 {[%clk 0:02:59]} 8. cxd4 {[%clk 0:02:57]}  Nge7 {[%clk 0:03:00]} 9. Nc3 {[%clk 0:02:56]}  Nf5 {[%clk 0:03:00]} 10. a3 {[%clk 0:02:47]}  Be7 {[%clk 0:02:55]} 11. Bd3 {[%clk 0:02:32]}  Nfxd4 {[%clk 0:02:51]} 12. Nxd4 {[%clk 0:02:32]}  Nxd4 {[%clk 0:02:51]} 13. Qg4 {[%clk 0:02:32]}  Nb3 {[%clk 0:02:49]} 14. Qxg7 {[%clk 0:02:31]}  Rf8 {[%clk 0:02:48]} 15. Rb1 {[%clk 0:02:30]}  Nxc1 {[%clk 0:02:48]} 16. Rbxc1 {[%clk 0:02:30]}  h5 {[%clk 0:02:32]} 17. Nb5 {[%clk 0:02:13]}  Qb6 {[%clk 0:02:28]} 18. Rxc8+ {[%clk 0:02:07]}  Bxc8 {[%clk 0:02:29]} 19. b4 {[%clk 0:01:37]}  Bd7 {[%clk 0:02:27]} 20. Nd6+ {[%clk 0:01:29]}  Bxd6 {[%clk 0:02:25]} 21. exd6 {[%clk 0:01:30]}  Qxd6 {[%clk 0:02:26]} 22. Rc1 {[%clk 0:01:28]}  Qf4 {[%clk 0:02:25]} 23. Rc2 {[%clk 0:01:17]}  h4 {[%clk 0:02:21]} 24. h3 {[%clk 0:00:57]}  a6 {[%clk 0:02:17]} 25. g3 {[%clk 0:00:28]}  hxg3 {[%clk 0:02:14]} 26. fxg3 {[%clk 0:00:27]}  Qe3+ {[%clk 0:02:13]} 27. Kg2 {[%clk 0:00:25]}  Qxd3 {[%clk 0:02:14]} 28. Rf2 {[%clk 0:00:24]}  Bc6 {[%clk 0:02:12]} 29. Kh2 {[%clk 0:00:24]}  d4 {[%clk 0:02:09]} 30. Qe5 {[%clk 0:00:23]}  Kd7 {[%clk 0:02:00]} 31. Qg7 {[%clk 0:00:16]}  Ke8 {[%clk 0:01:45]} 32. Qe5 {[%clk 0:00:16]}  Qe4 {[%clk 0:01:45]} 33. Qb8+ {[%clk 0:00:03]}  Kd7 {[%clk 0:01:45]} 0-1


[Site "https://www.chess.com"]

[Event "Titled Tuesday Blitz June 13 Early 2023"]
[White "Georg, Heinz"]
[Black "Mirzanurov, Bulat"]
[WhiteFideId "4607295"]
[BlackFideId "4184521"]
[WhiteElo "2318"]
[BlackElo "2005"]
[Result "1/2-1/2"]
[Round "5"]
[TimeControl "180+2"]
[Date "2023.06.13"]
[WhiteClock "0:00:06"]
[BlackClock "0:00:05"]
[Board "197"]

1. e4 {[%clk 0:03:00]}  c5 {[%clk 0:02:59]} 2. Nf3 {[%clk 0:03:00]}  d6 {[%clk 0:02:57]} 3. Bb5+ {[%clk 0:02:58]}  Nd7 {[%clk 0:02:46]} 4. O-O {[%clk 0:02:57]}  Nf6 {[%clk 0:02:44]} 5. Re1 {[%clk 0:02:57]}  e6 {[%clk 0:02:42]} 6. c3 {[%clk 0:02:56]}  Be7 {[%clk 0:02:40]} 7. d4 {[%clk 0:02:56]}  cxd4 {[%clk 0:02:39]} 8. cxd4 {[%clk 0:02:56]}  a6 {[%clk 0:02:40]} 9. Bf1 {[%clk 0:02:52]}  O-O {[%clk 0:02:35]} 10. Nc3 {[%clk 0:02:50]}  b5 {[%clk 0:02:33]} 11. e5 {[%clk 0:02:49]}  dxe5 {[%clk 0:02:22]} 12. dxe5 {[%clk 0:02:49]}  Ne8 {[%clk 0:02:22]} 13. Bf4 {[%clk 0:02:44]}  Bb7 {[%clk 0:02:20]} 14. Bd3 {[%clk 0:02:30]}  Nc7 {[%clk 0:02:16]} 15. Be4 {[%clk 0:02:13]}  Bxe4 {[%clk 0:01:59]} 16. Rxe4 {[%clk 0:02:14]}  Nc5 {[%clk 0:01:58]} 17. Rd4 {[%clk 0:02:13]}  Qc8 {[%clk 0:01:56]} 18. b4 {[%clk 0:02:12]}  Nb7 {[%clk 0:01:42]} 19. a3 {[%clk 0:02:10]}  Rd8 {[%clk 0:01:39]} 20. Rc1 {[%clk 0:01:56]}  Qb8 {[%clk 0:01:35]} 21. Qd2 {[%clk 0:01:44]}  Qa7 {[%clk 0:01:25]} 22. Rd1 {[%clk 0:01:43]}  Rxd4 {[%clk 0:01:17]} 23. Qxd4 {[%clk 0:01:39]}  Qxd4 {[%clk 0:01:14]} 24. Rxd4 {[%clk 0:01:32]}  Rd8 {[%clk 0:01:07]} 25. Rxd8+ {[%clk 0:01:31]}  Nxd8 {[%clk 0:01:01]} 26. Nd4 {[%clk 0:01:31]}  g5 {[%clk 0:00:54]} 27. Bg3 {[%clk 0:01:30]}  Kf8 {[%clk 0:00:53]} 28. Kf1 {[%clk 0:01:24]}  Ke8 {[%clk 0:00:50]} 29. Ke2 {[%clk 0:01:24]}  h5 {[%clk 0:00:50]} 30. h3 {[%clk 0:01:23]}  Kd7 {[%clk 0:00:45]} 31. Kd3 {[%clk 0:01:20]}  Nc6 {[%clk 0:00:43]} 32. Nxc6 {[%clk 0:01:13]}  Kxc6 {[%clk 0:00:44]} 33. Ke4 {[%clk 0:01:13]}  Ne8 {[%clk 0:00:31]} 34. f4 {[%clk 0:01:11]}  gxf4 {[%clk 0:00:15]} 35. Bxf4 {[%clk 0:01:11]}  Ng7 {[%clk 0:00:14]} 36. g4 {[%clk 0:01:09]}  hxg4 {[%clk 0:00:14]} 37. hxg4 {[%clk 0:01:10]}  a5 {[%clk 0:00:12]} 38. bxa5 {[%clk 0:00:50]}  Bxa3 {[%clk 0:00:12]} 39. Kd4 {[%clk 0:00:48]}  Bb4 {[%clk 0:00:11]} 40. Ne4 {[%clk 0:00:43]}  Bxa5 {[%clk 0:00:07]} 41. Ng5 {[%clk 0:00:43]}  Be1 {[%clk 0:00:03]} 42. Nxf7 {[%clk 0:00:42]}  Bf2+ {[%clk 0:00:03]} 43. Ke4 {[%clk 0:00:35]}  Ne8 {[%clk 0:00:04]} 44. g5 {[%clk 0:00:32]}  b4 {[%clk 0:00:04]} 45. Nd6 {[%clk 0:00:31]}  Nxd6+ {[%clk 0:00:03]} 46. exd6 {[%clk 0:00:31]}  b3 {[%clk 0:00:03]} 47. Kd3 {[%clk 0:00:31]}  b2 {[%clk 0:00:02]} 48. Kc2 {[%clk 0:00:31]}  Bd4 {[%clk 0:00:02]} 49. g6 {[%clk 0:00:28]}  Bg7 {[%clk 0:00:01]} 50. Kb1 {[%clk 0:00:21]}  e5 {[%clk 0:00:02]} 51. Bd2 {[%clk 0:00:15]}  Kxd6 {[%clk 0:00:02]} 52. Kxb2 {[%clk 0:00:16]}  Ke6 {[%clk 0:00:02]} 53. Kc2 {[%clk 0:00:15]}  Kf6 {[%clk 0:00:02]} 54. Be3 {[%clk 0:00:14]}  Kxg6 {[%clk 0:00:03]} 55. Kd3 {[%clk 0:00:15]}  Bh6 {[%clk 0:00:03]} 56. Bb6 {[%clk 0:00:11]}  Kf5 {[%clk 0:00:03]} 57. Ke2 {[%clk 0:00:12]}  e4 {[%clk 0:00:03]} 58. Bc5 {[%clk 0:00:10]}  Ke5 {[%clk 0:00:03]} 59. Bb6 {[%clk 0:00:10]}  Bf4 {[%clk 0:00:04]} 60. Ba7 {[%clk 0:00:08]}  Kd5 {[%clk 0:00:04]} 61. Bb6 {[%clk 0:00:08]}  Kc4 {[%clk 0:00:04]} 62. Ba7 {[%clk 0:00:06]}  Kc3 {[%clk 0:00:05]} 63. Bb6 {[%clk 0:00:06]}  Kc4 {[%clk 0:00:05]} 64. Ba7 {[%clk 0:00:06]}  e3 {[%clk 0:00:05]} 65. Bxe3 {[%clk 0:00:06]} 1/2-1/2


[Site "https://www.chess.com"]

[Event "Titled Tuesday Blitz June 13 Early 2023"]
[White "Vaglio Munoz, Jaime"]
[Black "De Souza, Cristiano Gomes"]
[WhiteFideId "6500145"]
[BlackFideId "2151758"]
[WhiteElo "2199"]
[BlackElo "2068"]
[Result "1-0"]
[Round "5"]
[TimeControl "180+2"]
[Date "2023.06.13"]
[WhiteClock "0:00:07"]
[BlackClock "0:00:04"]
[Board "198"]

1. Nf3 {[%clk 0:03:00]}  Nf6 {[%clk 0:02:59]} 2. d4 {[%clk 0:03:01]}  g6 {[%clk 0:02:59]} 3. g3 {[%clk 0:03:01]}  Bg7 {[%clk 0:02:59]} 4. Bg2 {[%clk 0:03:02]}  O-O {[%clk 0:02:59]} 5. O-O {[%clk 0:03:03]}  d6 {[%clk 0:02:59]} 6. a4 {[%clk 0:03:03]}  Nc6 {[%clk 0:03:00]} 7. Bf4 {[%clk 0:02:55]}  a6 {[%clk 0:02:55]} 8. Nc3 {[%clk 0:02:52]}  Bf5 {[%clk 0:02:54]} 9. d5 {[%clk 0:02:43]}  Na7 {[%clk 0:02:43]} 10. Nd4 {[%clk 0:02:41]}  Bd7 {[%clk 0:02:37]} 11. e4 {[%clk 0:02:41]}  Nh5 {[%clk 0:02:36]} 12. Be3 {[%clk 0:02:40]}  c5 {[%clk 0:02:29]} 13. dxc6 {[%clk 0:02:29]}  Nxc6 {[%clk 0:02:27]} 14. Nd5 {[%clk 0:02:26]}  Nxd4 {[%clk 0:02:25]} 15. Bxd4 {[%clk 0:02:25]}  Bc6 {[%clk 0:02:25]} 16. Nb6 {[%clk 0:02:21]}  Rb8 {[%clk 0:02:24]} 17. a5 {[%clk 0:02:21]}  Bxd4 {[%clk 0:02:16]} 18. Qxd4 {[%clk 0:02:20]}  Nf6 {[%clk 0:02:17]} 19. c4 {[%clk 0:02:15]}  Nd7 {[%clk 0:02:16]} 20. Nxd7 {[%clk 0:01:52]}  Qxd7 {[%clk 0:02:16]} 21. b4 {[%clk 0:01:53]}  Rbc8 {[%clk 0:02:14]} 22. Rfd1 {[%clk 0:01:49]}  Rfd8 {[%clk 0:02:13]} 23. h4 {[%clk 0:01:48]}  Qc7 {[%clk 0:02:07]} 24. Rab1 {[%clk 0:01:44]}  Bd7 {[%clk 0:02:04]} 25. Rbc1 {[%clk 0:01:30]}  Be6 {[%clk 0:02:04]} 26. h5 {[%clk 0:01:23]}  f6 {[%clk 0:01:53]} 27. hxg6 {[%clk 0:01:21]}  hxg6 {[%clk 0:01:52]} 28. Rc3 {[%clk 0:01:19]}  Kf7 {[%clk 0:01:51]} 29. Rdc1 {[%clk 0:01:15]}  Qd7 {[%clk 0:01:50]} 30. Bf1 {[%clk 0:01:10]}  Rh8 {[%clk 0:01:49]} 31. Qb6 {[%clk 0:00:57]}  Rh5 {[%clk 0:01:38]} 32. Qe3 {[%clk 0:00:42]}  Rch8 {[%clk 0:01:37]} 33. Bg2 {[%clk 0:00:43]}  Bh3 {[%clk 0:01:36]} 34. Bf3 {[%clk 0:00:42]}  Bg4 {[%clk 0:01:34]} 35. Kf1 {[%clk 0:00:33]}  Rh2 {[%clk 0:01:14]} 36. c5 {[%clk 0:00:28]}  Bxf3 {[%clk 0:00:59]} 37. Qxf3 {[%clk 0:00:27]}  Qe6 {[%clk 0:00:55]} 38. cxd6 {[%clk 0:00:22]}  Qxd6 {[%clk 0:00:55]} 39. Ke2 {[%clk 0:00:13]}  Qxb4 {[%clk 0:00:50]} 40. Rc5 {[%clk 0:00:13]}  Rh1 {[%clk 0:00:44]} 41. Rxh1 {[%clk 0:00:06]}  Rxh1 {[%clk 0:00:42]} 42. Qxh1 {[%clk 0:00:07]}  Qxc5 {[%clk 0:00:42]} 43. Qh7+ {[%clk 0:00:07]}  Ke6 {[%clk 0:00:40]} 44. Qxg6 {[%clk 0:00:06]}  Qxa5 {[%clk 0:00:37]} 45. Qg8+ {[%clk 0:00:02]}  Kd7 {[%clk 0:00:36]} 46. Qb8 {[%clk 0:00:01]}  Qa2+ {[%clk 0:00:33]} 47. Ke3 {[%clk 0:00:02]}  Qb3+ {[%clk 0:00:31]} 48. Ke2 {[%clk 0:00:02]}  Qc2+ {[%clk 0:00:30]} 49. Ke3 {[%clk 0:00:03]}  Qc7 {[%clk 0:00:29]} 50. Qa7 {[%clk 0:00:02]}  a5 {[%clk 0:00:26]} 51. f4 {[%clk 0:00:02]}  Qc3+ {[%clk 0:00:23]} 52. Kf2 {[%clk 0:00:02]}  Kc6 {[%clk 0:00:20]} 53. g4 {[%clk 0:00:02]}  Qc5+ {[%clk 0:00:20]} 54. Qxc5+ {[%clk 0:00:02]}  Kxc5 {[%clk 0:00:20]} 55. g5 {[%clk 0:00:03]}  fxg5 {[%clk 0:00:20]} 56. fxg5 {[%clk 0:00:04]}  Kd6 {[%clk 0:00:19]} 57. g6 {[%clk 0:00:04]}  Ke6 {[%clk 0:00:19]} 58. e5 {[%clk 0:00:04]}  a4 {[%clk 0:00:17]} 59. Ke3 {[%clk 0:00:05]}  b5 {[%clk 0:00:17]} 60. Kd3 {[%clk 0:00:04]}  b4 {[%clk 0:00:17]} 61. Kc4 {[%clk 0:00:03]}  b3 {[%clk 0:00:17]} 62. Kc3 {[%clk 0:00:03]}  Kxe5 {[%clk 0:00:08]} 63. g7 {[%clk 0:00:04]}  Ke4 {[%clk 0:00:07]} 64. g8=Q {[%clk 0:00:03]}  e5 {[%clk 0:00:07]} 65. Qa8+ {[%clk 0:00:02]}  Ke3 {[%clk 0:00:06]} 66. Qxa4 {[%clk 0:00:03]}  b2 {[%clk 0:00:06]} 67. Kxb2 {[%clk 0:00:03]}  e4 {[%clk 0:00:06]} 68. Kc1 {[%clk 0:00:04]}  Kf4 {[%clk 0:00:06]} 69. Kd1 {[%clk 0:00:04]}  Kf3 {[%clk 0:00:07]} 70. Ke1 {[%clk 0:00:05]}  e3 {[%clk 0:00:07]} 71. Qa2 {[%clk 0:00:06]}  Ke4 {[%clk 0:00:04]} 72. Qe2 {[%clk 0:00:07]} 1-0


[Site "https://www.chess.com"]

[Event "Titled Tuesday Blitz June 13 Early 2023"]
[White "Rodriguez Santiago, Jaime"]
[Black "Luxama, Jacques Muller"]
[WhiteFideId "3100898"]
[BlackFideId "11900113"]
[WhiteElo "2025"]
[BlackElo "1931"]
[Result "0-1"]
[Round "5"]
[TimeControl "180+2"]
[Date "2023.06.13"]
[WhiteClock "0:00:36"]
[BlackClock "0:01:02"]
[Board "199"]

1. c4 {[%clk 0:02:53]}  e6 {[%clk 0:02:59]} 2. Nf3 {[%clk 0:02:52]}  d5 {[%clk 0:02:57]} 3. g3 {[%clk 0:02:52]}  Nf6 {[%clk 0:02:57]} 4. Bg2 {[%clk 0:02:52]}  Be7 {[%clk 0:02:57]} 5. O-O {[%clk 0:02:52]}  O-O {[%clk 0:02:53]} 6. b3 {[%clk 0:02:51]}  c5 {[%clk 0:02:52]} 7. Bb2 {[%clk 0:02:50]}  Nc6 {[%clk 0:02:51]} 8. e3 {[%clk 0:02:49]}  d4 {[%clk 0:02:49]} 9. exd4 {[%clk 0:02:43]}  cxd4 {[%clk 0:02:48]} 10. d3 {[%clk 0:02:43]}  Re8 {[%clk 0:02:45]} 11. Na3 {[%clk 0:02:42]}  Bf8 {[%clk 0:02:38]} 12. Re1 {[%clk 0:02:35]}  e5 {[%clk 0:02:36]} 13. h3 {[%clk 0:02:32]}  h6 {[%clk 0:02:30]} 14. Nc2 {[%clk 0:02:31]}  a5 {[%clk 0:02:24]} 15. a3 {[%clk 0:02:28]}  Bf5 {[%clk 0:02:21]} 16. Nh4 {[%clk 0:02:18]}  Bh7 {[%clk 0:02:18]} 17. Qd2 {[%clk 0:02:10]}  g5 {[%clk 0:02:12]} 18. Nf3 {[%clk 0:02:03]}  Bg7 {[%clk 0:01:57]} 19. b4 {[%clk 0:01:51]}  axb4 {[%clk 0:01:55]} 20. axb4 {[%clk 0:01:50]}  Rxa1 {[%clk 0:01:54]} 21. Bxa1 {[%clk 0:01:47]}  e4 {[%clk 0:01:52]} 22. Nfxd4 {[%clk 0:01:44]}  Nxd4 {[%clk 0:01:45]} 23. Nxd4 {[%clk 0:01:42]}  exd3 {[%clk 0:01:42]} 24. Rxe8+ {[%clk 0:01:37]}  Nxe8 {[%clk 0:01:35]} 25. Nb3 {[%clk 0:01:27]}  Bxa1 {[%clk 0:01:30]} 26. Nxa1 {[%clk 0:01:28]}  Qd4 {[%clk 0:01:25]} 27. Qd1 {[%clk 0:01:16]}  Qxc4 {[%clk 0:01:22]} 28. Bxb7 {[%clk 0:01:16]}  Qxb4 {[%clk 0:01:19]} 29. Bf3 {[%clk 0:01:15]}  Nd6 {[%clk 0:01:14]} 30. Nb3 {[%clk 0:01:11]}  Nc4 {[%clk 0:01:08]} 31. Nd4 {[%clk 0:01:01]}  Nb2 {[%clk 0:01:05]} 32. Qa1 {[%clk 0:00:36]}  Qxd4 {[%clk 0:01:02]} 0-1


[Site "https://www.chess.com"]

[Event "Titled Tuesday Blitz June 13 Early 2023"]
[White "Winkels, Marcel"]
[Black "babbilator"]
[WhiteFideId "1003887"]
[WhiteElo "1900"]
[BlackElo "2294"]
[Result "0-1"]
[Round "5"]
[TimeControl "180+2"]
[Date "2023.06.13"]
[WhiteClock "0:00:00"]
[BlackClock "0:00:26"]
[Board "200"]

1. e4 {[%clk 0:03:00]}  c5 {[%clk 0:02:59]} 2. Nf3 {[%clk 0:02:57]}  e6 {[%clk 0:02:59]} 3. d3 {[%clk 0:02:52]}  d5 {[%clk 0:02:58]} 4. Nbd2 {[%clk 0:02:47]}  Nf6 {[%clk 0:02:58]} 5. g3 {[%clk 0:02:47]}  Nc6 {[%clk 0:02:58]} 6. Bg2 {[%clk 0:02:47]}  Be7 {[%clk 0:02:58]} 7. O-O {[%clk 0:02:47]}  b5 {[%clk 0:02:58]} 8. Re1 {[%clk 0:02:45]}  b4 {[%clk 0:02:58]} 9. e5 {[%clk 0:02:44]}  Nd7 {[%clk 0:02:58]} 10. Nf1 {[%clk 0:02:44]}  a5 {[%clk 0:02:56]} 11. Bf4 {[%clk 0:02:43]}  a4 {[%clk 0:02:55]} 12. b3 {[%clk 0:02:38]}  Nb6 {[%clk 0:02:34]} 13. Qd2 {[%clk 0:02:37]}  Bd7 {[%clk 0:02:12]} 14. h4 {[%clk 0:02:34]}  h6 {[%clk 0:02:11]} 15. h5 {[%clk 0:02:32]}  Ra5 {[%clk 0:02:12]} 16. N1h2 {[%clk 0:02:26]}  Qa8 {[%clk 0:02:11]} 17. Ng4 {[%clk 0:01:52]}  axb3 {[%clk 0:01:06]} 18. cxb3 {[%clk 0:01:49]}  Ra3 {[%clk 0:01:04]} 19. Qc2 {[%clk 0:01:26]}  Na5 {[%clk 0:00:49]} 20. Rab1 {[%clk 0:01:16]}  Nc6 {[%clk 0:00:48]} 21. Re2 {[%clk 0:01:04]}  Qa6 {[%clk 0:00:44]} 22. Bf1 {[%clk 0:01:00]}  Kd8 {[%clk 0:00:42]} 23. Rc1 {[%clk 0:00:50]}  Kc7 {[%clk 0:00:36]} 24. d4 {[%clk 0:00:49]}  c4 {[%clk 0:00:35]} 25. Rd2 {[%clk 0:00:43]}  Na5 {[%clk 0:00:33]} 26. Ne3 {[%clk 0:00:24]}  Bb5 {[%clk 0:00:31]} 27. bxc4 {[%clk 0:00:18]}  Naxc4 {[%clk 0:00:28]} 28. Nxc4 {[%clk 0:00:00]}  Bxc4 {[%clk 0:00:26]} 0-1


[Site "https://www.chess.com"]

[Event "Titled Tuesday Blitz June 13 Early 2023"]
[White "Benevides Demasi, Joao Otavio"]
[Black "Bolanos, Fernando"]
[WhiteFideId "30916224"]
[BlackFideId "3304094"]
[WhiteElo "2130"]
[BlackElo "2097"]
[Result "1-0"]
[Round "5"]
[TimeControl "180+2"]
[Date "2023.06.13"]
[WhiteClock "0:02:11"]
[BlackClock "0:01:10"]
[Board "201"]

1. g3 {[%clk 0:02:49]}  d5 {[%clk 0:02:49]} 2. Bg2 {[%clk 0:02:49]}  c5 {[%clk 0:02:49]} 3. d3 {[%clk 0:02:50]}  Nc6 {[%clk 0:02:50]} 4. Nf3 {[%clk 0:02:50]}  e5 {[%clk 0:02:51]} 5. O-O {[%clk 0:02:50]}  Be7 {[%clk 0:02:51]} 6. c4 {[%clk 0:02:50]}  d4 {[%clk 0:02:51]} 7. e3 {[%clk 0:02:48]}  Nf6 {[%clk 0:02:47]} 8. exd4 {[%clk 0:02:47]}  cxd4 {[%clk 0:02:48]} 9. Re1 {[%clk 0:02:46]}  Nd7 {[%clk 0:02:45]} 10. Na3 {[%clk 0:02:45]}  O-O {[%clk 0:02:45]} 11. Nc2 {[%clk 0:02:45]}  Qc7 {[%clk 0:02:43]} 12. Rb1 {[%clk 0:02:40]}  a5 {[%clk 0:02:40]} 13. b3 {[%clk 0:02:40]}  f5 {[%clk 0:02:36]} 14. a3 {[%clk 0:02:23]}  Nf6 {[%clk 0:02:07]} 15. b4 {[%clk 0:02:21]}  axb4 {[%clk 0:01:47]} 16. axb4 {[%clk 0:02:21]}  Nd7 {[%clk 0:01:17]} 17. b5 {[%clk 0:02:20]}  Nd8 {[%clk 0:01:17]} 18. Nfxd4 {[%clk 0:02:12]}  exd4 {[%clk 0:01:10]} 19. Rxe7 {[%clk 0:02:11]} 1-0


[Site "https://www.chess.com"]

[Event "Titled Tuesday Blitz June 13 Early 2023"]
[White "Fudalej, Michal"]
[Black "Maluco_do_Natal_00"]
[WhiteFideId "1118781"]
[WhiteElo "2088"]
[BlackElo "2073"]
[Result "1-0"]
[Round "5"]
[TimeControl "180+2"]
[Date "2023.06.13"]
[WhiteClock "0:01:50"]
[BlackClock "0:00:38"]
[Board "203"]

1. Nf3 {[%clk 0:02:56]}  d5 {[%clk 0:02:59]} 2. g3 {[%clk 0:02:56]}  c5 {[%clk 0:02:59]} 3. Bg2 {[%clk 0:02:56]}  Nc6 {[%clk 0:03:00]} 4. c4 {[%clk 0:02:54]}  d4 {[%clk 0:02:51]} 5. O-O {[%clk 0:02:53]}  Nf6 {[%clk 0:02:52]} 6. e3 {[%clk 0:02:53]}  dxe3 {[%clk 0:02:47]} 7. dxe3 {[%clk 0:02:43]}  Bg4 {[%clk 0:02:45]} 8. Qa4 {[%clk 0:02:39]}  Qc7 {[%clk 0:02:32]} 9. Nc3 {[%clk 0:02:36]}  e6 {[%clk 0:02:06]} 10. Ne5 {[%clk 0:02:26]}  Qxe5 {[%clk 0:01:49]} 11. Bxc6+ {[%clk 0:02:24]}  Ke7 {[%clk 0:01:46]} 12. Bxb7 {[%clk 0:02:12]}  Rb8 {[%clk 0:01:45]} 13. Bg2 {[%clk 0:01:59]}  Qc7 {[%clk 0:01:34]} 14. Nb5 {[%clk 0:01:57]}  Qb6 {[%clk 0:00:38]} 15. Nxa7 {[%clk 0:01:50]} 1-0


[Site "https://www.chess.com"]

[Event "Titled Tuesday Blitz June 13 Early 2023"]
[White "Caruana, Fabiano"]
[Black "Lintchevski, Daniil"]
[WhiteFideId "2020009"]
[BlackFideId "4171055"]
[WhiteElo "2832"]
[BlackElo "2559"]
[Result "1-0"]
[Round "6"]
[TimeControl "180+2"]
[Date "2023.06.13"]
[WhiteClock "0:00:39"]
[BlackClock "0:00:01"]
[Board "1"]

1. e4 {[%clk 0:03:00]}  c5 {[%clk 0:02:57]} 2. Nf3 {[%clk 0:03:01]}  Nf6 {[%clk 0:02:57]} 3. e5 {[%clk 0:03:00]}  Nd5 {[%clk 0:02:57]} 4. Nc3 {[%clk 0:03:01]}  e6 {[%clk 0:02:58]} 5. Bc4 {[%clk 0:02:57]}  Nb6 {[%clk 0:02:52]} 6. d3 {[%clk 0:02:57]}  d5 {[%clk 0:02:38]} 7. exd6 {[%clk 0:02:57]}  Bxd6 {[%clk 0:02:39]} 8. Qe2 {[%clk 0:02:58]}  O-O {[%clk 0:02:36]} 9. Be3 {[%clk 0:02:49]}  Nc6 {[%clk 0:02:36]} 10. Ne4 {[%clk 0:02:47]}  Nxc4 {[%clk 0:02:27]} 11. dxc4 {[%clk 0:02:47]}  Be7 {[%clk 0:02:28]} 12. O-O {[%clk 0:02:42]}  b6 {[%clk 0:02:28]} 13. Bf4 {[%clk 0:02:33]}  Bb7 {[%clk 0:02:15]} 14. Rad1 {[%clk 0:02:33]}  Qc8 {[%clk 0:02:15]} 15. Nd6 {[%clk 0:02:25]}  Bxd6 {[%clk 0:02:13]} 16. Rxd6 {[%clk 0:02:26]}  Rd8 {[%clk 0:02:10]} 17. Rfd1 {[%clk 0:02:26]}  Rxd6 {[%clk 0:02:11]} 18. Bxd6 {[%clk 0:02:17]}  Qe8 {[%clk 0:02:05]} 19. c3 {[%clk 0:02:13]}  Rd8 {[%clk 0:02:05]} 20. b4 {[%clk 0:02:12]}  f6 {[%clk 0:01:44]} 21. bxc5 {[%clk 0:02:10]}  bxc5 {[%clk 0:01:45]} 22. h3 {[%clk 0:02:01]}  e5 {[%clk 0:01:33]} 23. Bxc5 {[%clk 0:02:01]}  Rxd1+ {[%clk 0:01:29]} 24. Qxd1 {[%clk 0:02:02]}  Qe6 {[%clk 0:01:30]} 25. Qa4 {[%clk 0:01:58]}  h5 {[%clk 0:01:18]} 26. Be3 {[%clk 0:01:48]}  a6 {[%clk 0:01:06]} 27. Nd2 {[%clk 0:01:46]}  Nd8 {[%clk 0:00:55]} 28. Qa5 {[%clk 0:01:21]}  Nf7 {[%clk 0:00:51]} 29. f3 {[%clk 0:01:13]}  Qc6 {[%clk 0:00:49]} 30. Qb4 {[%clk 0:01:10]}  Nd6 {[%clk 0:00:41]} 31. c5 {[%clk 0:01:10]}  Nf5 {[%clk 0:00:39]} 32. Bf2 {[%clk 0:01:10]}  Ne7 {[%clk 0:00:39]} 33. Ne4 {[%clk 0:01:09]}  Nd5 {[%clk 0:00:37]} 34. Qb3 {[%clk 0:01:09]}  Kh7 {[%clk 0:00:35]} 35. Nd6 {[%clk 0:01:08]}  Ba8 {[%clk 0:00:35]} 36. Qb1+ {[%clk 0:01:08]}  Kg8 {[%clk 0:00:31]} 37. Qg6 {[%clk 0:01:03]}  Nf4 {[%clk 0:00:30]} 38. Qf7+ {[%clk 0:01:02]}  Kh7 {[%clk 0:00:24]} 39. Ne8 {[%clk 0:00:56]}  Qb7 {[%clk 0:00:16]} 40. Nxf6+ {[%clk 0:00:56]}  Kh6 {[%clk 0:00:15]} 41. Qxb7 {[%clk 0:00:47]}  Bxb7 {[%clk 0:00:16]} 42. Nd7 {[%clk 0:00:46]}  Ne2+ {[%clk 0:00:06]} 43. Kf1 {[%clk 0:00:47]}  Nxc3 {[%clk 0:00:07]} 44. Nxe5 {[%clk 0:00:46]}  Nxa2 {[%clk 0:00:06]} 45. c6 {[%clk 0:00:47]}  Bc8 {[%clk 0:00:06]} 46. Nf7+ {[%clk 0:00:47]}  Kg6 {[%clk 0:00:05]} 47. Nd6 {[%clk 0:00:48]}  Be6 {[%clk 0:00:06]} 48. c7 {[%clk 0:00:48]}  a5 {[%clk 0:00:07]} 49. c8=Q {[%clk 0:00:47]}  Bxc8 {[%clk 0:00:07]} 50. Nxc8 {[%clk 0:00:48]}  Nb4 {[%clk 0:00:06]} 51. Be1 {[%clk 0:00:44]}  Nc6 {[%clk 0:00:05]} 52. Nb6 {[%clk 0:00:45]}  Kf5 {[%clk 0:00:05]} 53. Kf2 {[%clk 0:00:42]}  g5 {[%clk 0:00:06]} 54. g4+ {[%clk 0:00:42]}  Kg6 {[%clk 0:00:05]} 55. Ke3 {[%clk 0:00:40]}  Ne5 {[%clk 0:00:05]} 56. Bxa5 {[%clk 0:00:38]}  hxg4 {[%clk 0:00:01]} 57. hxg4 {[%clk 0:00:39]} 1-0


[Site "https://www.chess.com"]

[Event "Titled Tuesday Blitz June 13 Early 2023"]
[White "Kramnik, Vladimir"]
[Black "Nihal Sarin"]
[WhiteFideId "4101588"]
[BlackFideId "25092340"]
[WhiteElo "2703"]
[BlackElo "2689"]
[Result "1-0"]
[Round "6"]
[TimeControl "180+2"]
[Date "2023.06.13"]
[WhiteClock "0:00:06"]
[BlackClock "0:00:02"]
[Board "5"]

1. e4 {[%clk 0:03:00]}  g6 {[%clk 0:02:57]} 2. d4 {[%clk 0:02:59]}  Bg7 {[%clk 0:02:58]} 3. Nf3 {[%clk 0:02:58]}  d6 {[%clk 0:02:59]} 4. Be2 {[%clk 0:02:58]}  Nf6 {[%clk 0:02:58]} 5. Nc3 {[%clk 0:02:58]}  O-O {[%clk 0:02:58]} 6. O-O {[%clk 0:02:58]}  Nc6 {[%clk 0:02:59]} 7. d5 {[%clk 0:02:56]}  Nb8 {[%clk 0:02:59]} 8. h3 {[%clk 0:02:52]}  c6 {[%clk 0:02:59]} 9. a4 {[%clk 0:02:50]}  a5 {[%clk 0:02:59]} 10. Bg5 {[%clk 0:02:47]}  Na6 {[%clk 0:02:59]} 11. Re1 {[%clk 0:02:44]}  Nd7 {[%clk 0:02:56]} 12. Qd2 {[%clk 0:02:40]}  Nb4 {[%clk 0:02:54]} 13. Bf1 {[%clk 0:02:34]}  Re8 {[%clk 0:02:52]} 14. Rad1 {[%clk 0:02:20]}  Qb6 {[%clk 0:02:48]} 15. Be3 {[%clk 0:02:05]}  Nc5 {[%clk 0:02:37]} 16. Bd4 {[%clk 0:02:04]}  Bxd4 {[%clk 0:02:37]} 17. Nxd4 {[%clk 0:02:01]}  Bd7 {[%clk 0:02:38]} 18. Qh6 {[%clk 0:01:33]}  e5 {[%clk 0:02:22]} 19. dxe6 {[%clk 0:01:32]}  Nxe6 {[%clk 0:02:19]} 20. Nf5 {[%clk 0:01:25]}  Nxc2 {[%clk 0:01:54]} 21. Rxd6 {[%clk 0:01:14]}  gxf5 {[%clk 0:01:08]} 22. exf5 {[%clk 0:00:55]}  Nxe1 {[%clk 0:00:58]} 23. Ne4 {[%clk 0:00:41]}  Kh8 {[%clk 0:00:34]} 24. Rxd7 {[%clk 0:00:11]}  Nf3+ {[%clk 0:00:16]} 25. Kh1 {[%clk 0:00:11]}  Qxb2 {[%clk 0:00:04]} 26. Nf6 {[%clk 0:00:07]}  Neg5 {[%clk 0:00:02]} 27. Rxf7 {[%clk 0:00:06]}  Qxf6 {[%clk 0:00:01]} 28. Qxf6+ {[%clk 0:00:05]}  Kg8 {[%clk 0:00:02]} 29. Qg7# {[%clk 0:00:06]} 1-0


[Site "https://www.chess.com"]